Cogmind - Beta 11 X8 @@@ ROGUE MODE // 2021.11.09 @ 23:04:38 Player: Olga Result: Destroyed by P-70 Sage via exploding Fusion Modulator Performance ------------- Evolutions (5) 2500 Regions Visited (15) 3000 Robots Destroyed (96) 480 Value Destroyed (3505) 3505 Prototype IDs (35) 700 Alien Tech Used (0) 0 Bonus (1243) 1243 TOTAL SCORE: 11428 Bonus ------- High Alert Combat Kills 30 Follower Combat Kills 231 Entered DSFs 500 Aligned with FarCom 300 Met Data Miner 300 Friendly Fire -118 Cogmind --------- Core Integrity 0/1000 Matter 233/300 Energy 98/100 System Corruption 10% Temperature Cool (24) Movement Core (50) Location -5/Factory Parts ------- > --- POWER (1) -------- (None) > --- PROPULSION (4) --- (None) > --- UTILITY (10) ----- (None) > --- WEAPON (2) ------- (None) > --- INVENTORY (5) ---- Improved Medium Treads Carbon-fiber Leg VTOL Module Peak State ------------ > --- POWER ------------ Improved Deuterium Engine > --- PROPULSION ------- Improved Medium Treads Improved Medium Treads Improved Medium Treads Improved Medium Treads > --- UTILITY ---------- Medium Storage Unit Visual Processing Unit Improved Sensor Array Advanced Signal Interpreter Improved Power Shielding Layered Light Armor Plating Force Field Drone Bay > --- WEAPON ----------- Improved Heavy Laser Heavy Rocket Launcher > --- INVENTORY -------- Micro Nuclear Core Improved Medium Treads Improved Medium Treads Flexi-carbon Leg Improved VSS Leg Potential Leg Potential Leg Advanced Terrain Scan Processor Improved Light Armor Plating Coil Gun [Rating: 67] Favorites ----------- Power Improved Deuterium Engine Engine Improved Deuterium Engine Power Core Light Nuclear Core Propulsion Improved Medium Treads Treads Improved Medium Treads Leg Aluminum Leg Wheel Wheel Utility Medium Storage Unit Device Improved Sensor Array Storage Medium Storage Unit Processor Visual Processing Unit Hackware Hacking Suite Protection Improved Power Shielding Weapon Heavy Assault Rifle Energy Gun Improved Heavy Laser Ballistic Gun Heavy Assault Rifle Ballistic Cannon Light Cannon Launcher Heavy Rocket Launcher Impact Weapon Power Maul Slashing Weapon Katana Build | -11 -10 -10 -9 -9 -9 -8 -8 -7 -7 -6 -6 -6 -6 -5 -5 ------- Run | Scr Mat Min Mat Min Exi Min Mat Fac DSF Fac Low Low Dat Pro Fac Slots Evolved 10 | . . . 2 . . . 2 2 . 2 . . . . 2 Power . | . . . . . . . . . . . . . . . . Propulsion 2 | . . . 1 . . . . 1 . . . . . . . Utility 8 | . . . 1 . . . 2 1 . 2 . . . . 2 Weapon . | . . . . . . . . . . . . . . . . Parts Attached 95 | . 12 . 10 3 2 . 21 4 14 19 1 3 . 1 5 Power 10 | . 2 . 1 1 . . 4 . 1 1 . . . . . Engine 8 | . 2 . 1 1 . . 2 . 1 1 . . . . . Core 2 | . . . . . . . 2 . . . . . . . . Reactor . | . . . . . . . . . . . . . . . . Propulsion 38 | . 6 . 5 2 2 . 2 2 6 8 . 1 . 1 3 Treads 11 | . . . . . . . . . 5 4 . 1 . 1 . Leg 25 | . 4 . 5 2 2 . 2 2 1 4 . . . . 3 Wheel 2 | . 2 . . . . . . . . . . . . . . Hover . | . . . . . . . . . . . . . . . . Flight . | . . . . . . . . . . . . . . . . Utility 23 | . 2 . 1 . . . 6 2 3 6 1 2 . . . Device 4 | . . . 1 . . . . . . 2 1 . . . . Storage 1 | . 1 . . . . . . . . . . . . . . Processor 6 | . 1 . . . . . 1 . 2 1 . 1 . . . Hackware 1 | . . . . . . . 1 . . . . . . . . Protection 11 | . . . . . . . 4 2 1 3 . 1 . . . Artifact . | . . . . . . . . . . . . . . . . Weapon 24 | . 2 . 3 . . . 9 . 4 4 . . . . 2 Energy Gun 1 | . . . . . . . . . . 1 . . . . . Energy Cannon . | . . . . . . . . . . . . . . . . Ballistic Gun 9 | . 2 . 2 . . . 2 . 1 1 . . . . 1 Ballistic Cannon 5 | . . . 1 . . . 2 . . 1 . . . . 1 Launcher 4 | . . . . . . . 2 . 1 1 . . . . . Special Weapon . | . . . . . . . . . . . . . . . . Impact Weapon 2 | . . . . . . . 1 . 1 . . . . . . Slashing Weapon 3 | . . . . . . . 2 . 1 . . . . . . Piercing Weapon . | . . . . . . . . . . . . . . . . Special Melee Weapon . | . . . . . . . . . . . . . . . . Unidentified Prototypes 2 | . . . . . . . 1 . . 1 . . . . . Parts Lost 51 | . 1 . 6 1 . . 12 . 7 3 2 . . 3 16 Power 5 | . . . 1 . . . 2 . 1 . . . . . 1 Propulsion 14 | . 1 . 2 1 . . 1 . 2 . 1 . . 3 3 Utility 17 | . . . . . . . 4 . 2 2 1 . . . 8 Weapon 15 | . . . 3 . . . 5 . 2 1 . . . . 4 Highest Loss Streak 15 | . 1 . 4 1 . . 7 . 3 2 1 . . 3 15 Average Slot Usage (%) 92 | . 94 100 93 97 100 100 88 91 86 97 98 95 100 93 44 Engine 7 | . 14 14 10 11 11 11 5 . 3 6 6 6 6 6 3 Treads 11 | . . . . . . . . . 12 23 26 26 26 19 6 Leg 13 | . 16 28 31 30 33 33 26 30 16 2 . . . . 1 Wheel 1 | . 10 . . . . . . . . . . . . . . Device 7 | . . . 7 11 11 11 6 . . 7 18 10 6 6 2 Storage 8 | . 14 14 11 11 11 11 9 7 7 6 6 6 6 6 2 Processor 13 | . 9 14 11 11 11 11 10 15 18 19 13 15 20 20 9 Protection 8 | . . . . . . . 7 14 8 15 13 15 20 20 8 Energy Gun 2 | . . . . . . . . . . 2 6 6 6 6 2 Ballistic Gun 8 | . 27 28 20 11 11 11 9 . 1 5 . . . . . Ballistic Cannon 2 | . . . . 11 11 11 3 . . 3 . . . . . Launcher 2 | . . . . . . . 1 . 3 . 6 6 6 6 2 Naked Turns 73 | . . . . . . . . . . . . . . . 73 Heaviest Build 59 | 14 21 19 20 20 20 20 27 41 49 59 52 45 42 42 42 Greatest Support 120 | 20 20 20 30 30 70 70 70 93 112 120 120 120 120 120 60 Greatest Overweight (x) 3 | . 1 . 1 . . . . . 1 . . . . . 3 Average Overweight (x) . | . . . . . . . . . . . . . . . . Largest Inventory Capacity 10 | 8 10 10 10 10 10 10 10 10 10 10 10 10 10 10 10 Average Capacity 9 | 8 9 10 10 10 10 10 10 10 10 10 10 10 10 10 7 Most Carried 10 | 6 10 10 10 10 10 10 10 10 10 10 10 9 7 7 10 Average Carried 8 | 6 9 10 9 9 10 10 9 9 9 9 9 8 7 6 4 Final Capacity 10 | 8 10 10 10 10 10 10 10 10 10 10 10 10 10 10 5 Final Carried 10 | 6 10 10 9 10 10 10 10 10 7 10 10 7 7 6 3 Class Distribution -------------------- 42% | Skirmisher 35% | Mutant 19% | Scavenger-Mutant 3% | Scavenger-Skirmisher Dominant Class ---------------- Mutant | -10/Materials Mutant | -10/Mines Scavenger-Mutant | -9/Materials Scavenger-Mutant | -9/Mines Mutant | -9/Exiles Skirmisher | -8/Mines Skirmisher | -8/Materials Scavenger-Mutant | -7/Factory Scavenger-Mutant | -7/DSF Mutant | -6/Factory Skirmisher | -6/Lower Caves Skirmisher | -6/Lower Caves Skirmisher | -6/Data Miner Skirmisher | -5/Proximity Caves Mutant | -5/Factory Resources | -11 -10 -10 -9 -9 -9 -8 -8 -7 -7 -6 -6 -6 -6 -5 -5 ----------- Run | Scr Mat Min Mat Min Exi Min Mat Fac DSF Fac Low Low Dat Pro Fac Matter Collected 2453 | 200 343 . 244 88 . . 276 . 271 455 223 78 . 181 94 Remotely . | . . . . . . . . . . . . . . . . Salvage Created 2976 | . 393 . 427 52 . . 349 . 172 657 346 65 . 201 314 Parts 161 | . 27 . 20 7 . . 28 . 13 19 19 2 . 11 15 Haulers Intercepted . | . . . . . . . . . . . . . . . . Recyclers Shooed 2 | . . . . . . . 1 . . . . . . . 1 Parts Field Recycled . | . . . . . . . . . . . . . . . . Retrieved Matter . | . . . . . . . . . . . . . . . . Parts Self-Destructed 23 | . . . . . . . . . . . 12 1 . 10 . Prevented . | . . . . . . . . . . . . . . . . Kills | -11 -10 -10 -9 -9 -9 -8 -8 -7 -7 -6 -6 -6 -6 -5 -5 ------- Run | Scr Mat Min Mat Min Exi Min Mat Fac DSF Fac Low Low Dat Pro Fac Combat Hostiles Destroyed 93 | . 11 . 12 4 . . 11 . 10 12 11 4 . 7 11 Melee 8 | . . . . . . . 2 . 4 1 . . . . 1 Guns 49 | . 11 . 12 3 . . 3 . . 11 4 1 . 1 3 Cannons 6 | . . . . 1 . . 4 . . . . . . . 1 AOE 30 | . . . . . . . 2 . 6 . 7 3 . 6 6 Classes Destroyed 10 | . 3 . 1 . . . 2 . 1 2 1 . . . . Watcher 3 | . 2 . 1 . . . . . . . . . . . . Swarmer 33 | . 6 . 4 4 . . 4 . 7 . 4 . . . 4 Cutter 2 | . . . . . . . . . 2 . . . . . . Grunt 46 | . 5 . 7 . . . 4 . . 9 6 2 . 7 6 Brawler 2 | . . . . . . . . . . 1 . . . . 1 Duelist 1 | . . . . . . . . . . . 1 . . . . Sentry 3 | . . . 1 . . . 1 . . 1 . . . . . Specialist 2 | . . . . . . . 1 . 1 . . . . . . Hunter 3 | . . . . . . . 1 . . . . 2 . . . Programmer 1 | . . . . . . . . . . 1 . . . . . Best Kill Streak 7 | . 3 . 7 4 . . 4 . 4 4 4 2 . 4 7 Combat Bots Only 7 | . 3 . 7 4 . . 4 . 4 4 4 2 . 4 7 Max Kills in Single Turn 3 | . 1 . 2 1 . . 2 . 2 1 3 1 . 2 3 Gunslinging 1 | . . . 1 . . . . . . . . . . . . Exploded 3 | . . . . . . . 2 . 2 . 2 1 . 2 3 Melee 2 | . . . . . . . 1 . 2 1 . . . . 1 Uniques/NPCs Destroyed . | . . . . . . . . . . . . . . . . Combat | -11 -10 -10 -9 -9 -9 -8 -8 -7 -7 -6 -6 -6 -6 -5 -5 -------- Run | Scr Mat Min Mat Min Exi Min Mat Fac DSF Fac Low Low Dat Pro Fac Damage Taken 9650 | . 509 . 712 148 . . 2029 . 2275 740 191 391 . 488 2167 Core 1648 | . 88 . 108 33 . . 212 . 101 40 . 44 . 22 1000 Absorbed by Shields 409 | . . . . . . . . . . 409 . . . . . Core Remaining (%) 76 | 100 . 64 . . . 64 61 . 85 . . . . 87 . Volleys Fired 195 | . 38 . 30 9 . . 31 . 6 35 10 10 . 8 18 Largest 2 | . 2 . 2 2 . . 2 . 2 2 2 2 . 2 2 Hottest 104 | . 46 . 46 58 . . 58 . 56 95 104 104 . 104 104 Shots Fired 367 | . 76 . 58 18 . . 54 . 7 65 20 20 . 16 33 Gun 266 | . 76 . 58 9 . . 33 . 1 44 10 10 . 8 17 Cannon 55 | . . . . 9 . . 16 . . 21 . . . . 9 Launcher 46 | . . . . . . . 5 . 6 . 10 10 . 8 7 Special . | . . . . . . . . . . . . . . . . Kinetic 275 | . 76 . 58 18 . . 49 . 1 55 . . . . 18 Thermal 46 | . . . . . . . . . . 10 10 10 . 8 8 Explosive 46 | . . . . . . . 5 . 6 . 10 10 . 8 7 Electromagnetic . | . . . . . . . . . . . . . . . . Robot Hit Streak 19 | . 7 . 8 9 . . 10 . 8 19 6 5 . 6 4 Robot Miss Streak 6 | . 3 . 4 6 . . 2 . 1 2 1 2 . 2 4 Penetration Max 1 | . . . . . . . . . . 1 . . . . . Secondary Targets 4 | . . . 4 . . . . . . . . . . . . Max Gunslinging Chain 1 | . . . 1 . . . . . . . . . . . . Shots Hit Robots 254 | . 44 . 42 6 . . 42 . 19 51 13 12 . 9 16 Core Hits 181 | . 18 . 18 4 . . 26 . 12 24 21 11 . 21 26 Critical Kills 3 | . . . . . . . . . . 3 . . . . . Critical Parts Destroyed 1 | . . . . . . . . . . 1 . . . . . Critical Strikes 6 | . . . . . . . . . . 4 . . . 1 1 Burn 1 | . . . . . . . . . . . . . . 1 . Destroy 4 | . . . . . . . . . . 4 . . . . . Blast 1 | . . . . . . . . . . . . . . . 1 Melee Attacks 26 | . . . . . . . 2 . 24 . . . . . . Impact 12 | . . . . . . . . . 12 . . . . . . Slashing 14 | . . . . . . . 2 . 12 . . . . . . Piercing . | . . . . . . . . . . . . . . . . Sneak Attacks 1 | . . . . . . . . . 1 . . . . . . Combat Hostiles . | . . . . . . . . . . . . . . . . Follow-up Attacks 5 | . . . . . . . . . 5 . . . . . . Damage Inflicted 9623 | . 657 . 658 115 . . 1075 . 1027 1260 1050 924 . 1294 1563 Guns 3438 | . 654 . 658 82 . . 374 . . 1035 182 132 . 129 192 Cannons 488 | . . . . 33 . . 191 . . 222 . . . . 42 Explosions 5093 | . . . . . . . 437 . 563 . 868 792 . 1165 1268 Melee 530 | . . . . . . . 66 . 464 . . . . . . Ramming 74 | . 3 . . . . . 7 . . 3 . . . . 61 Kinetic 3161 | . 654 . 658 115 . . 565 . . 1040 . . . . 129 Thermal 765 | . . . . . . . . . . 217 182 132 . 129 105 Explosive 5093 | . . . . . . . 437 . 563 . 868 792 . 1165 1268 Electromagnetic . | . . . . . . . . . . . . . . . . Impact 343 | . . . . . . . . . 343 . . . . . . Slashing 187 | . . . . . . . 66 . 121 . . . . . . Piercing . | . . . . . . . . . . . . . . . . Highest Corruption 10 | . . . . . . . 4 . . 7 7 7 7 7 10 Average Corruption 6 | . . . . . . . 4 . . 4 7 7 7 7 9 Corruption Purged . | . . . . . . . . . . . . . . . . Effects 61 | . . . . . . . . . . 9 22 12 4 9 5 Message Errors 17 | . . . . . . . . . . 2 4 5 2 2 2 Matter Fused 17 | . . . . . . . . . . 2 7 3 1 3 1 Heat Flow Errors 7 | . . . . . . . . . . . 3 1 . 3 . Energy Discharges 10 | . . . . . . . . . . 1 7 1 . 1 . Parts Rejected 1 | . . . . . . . . . . . . . . . 1 Data Loss (minor) 3 | . . . . . . . . . . 1 1 1 . . . Data Loss (major) 3 | . . . . . . . . . . 1 . 1 1 . . Weapon Failures 3 | . . . . . . . . . . 2 . . . . 1 Overload Shots . | . . . . . . . . . . . . . . . . Overflow Damage 198 | . . . . . . . . . 148 . . 31 . 17 2 Projectiles . | . . . . . . . . . . . . . . . . Explosions 102 | . . . . . . . . . 52 . . 31 . 17 2 Melee 96 | . . . . . . . . . 96 . . . . . . Knockbacks 9 | . . . . . . . 2 . 2 4 . . . . 1 Impact 2 | . . . . . . . . . 2 . . . . . . Kinetic 7 | . . . . . . . 2 . . 4 . . . . 1 Secondary . | . . . . . . . . . . . . . . . . Self-Inflicted Damage 314 | . . . . . . . 28 . 247 . . . . 19 20 Shots 9 | . . . . . . . 2 . 6 . . . . 1 . Rammed 16 | . . . . . . . . . . . . . . . 16 Targets Rammed 29 | . 1 . . . . . 5 . . 1 . . . . 22 Kicked 12 | . 1 . . . . . 5 . . . . . . . 6 Crushed 1 | . . . . . . . . . . 1 . . . . . Highest Temperature 247 | . 22 . 19 . . . 4 . . 96 247 165 . 227 205 Average Temperature 62 | . 5 . 5 . . . 3 . . 34 72 75 . 88 94 Received Heat Transfer 1433 | . 231 . 318 . . . 198 . 18 216 27 36 . 230 159 Effects 1 | . . . . . . . . . . . 1 . . . . Interference 1 | . . . . . . . . . . . 1 . . . . Siege Activations . | . . . . . . . . . . . . . . . . Robots Corrupted . | . . . . . . . . . . . . . . . . Combat Hostiles . | . . . . . . . . . . . . . . . . Parts Fried 2 | . . . . . . . . . 2 . . . . . . Impact Corruptions 4 | . . . . . . . . . 4 . . . . . . Robots Melted . | . . . . . . . . . . . . . . . . Combat Hostiles . | . . . . . . . . . . . . . . . . Parts Melted 1 | . . . . . . . . . . . 1 . . . . Heat Transferred 1147 | . . . . . . . . . . 296 259 185 . 259 148 Parts Sabotaged . | . . . . . . . . . . . . . . . . Parts Stolen . | . . . . . . . . . . . . . . . . Parts Stripped . | . . . . . . . . . . . . . . . . Power Chain Reactions . | . . . . . . . . . . . . . . . . Missiles Intercepted . | . . . . . . . . . . . . . . . . Alert | -11 -10 -10 -9 -9 -9 -8 -8 -7 -7 -6 -6 -6 -6 -5 -5 ------- Run | Scr Mat Min Mat Min Exi Min Mat Fac DSF Fac Low Low Dat Pro Fac Peak Influence 452 | . 319 48 377 110 . . 201 96 344 358 . . . . 452 Initial 180 | . . 48 18 30 . . . 91 67 180 . . . . 137 Average 154 | . 103 48 144 106 . . 79 91 190 261 . . . . 300 Maximum Alert Level 2 | . 1 . 1 . . . 1 . 1 1 . . . . 2 Low Security (%) 68 | 100 86 100 74 100 . 100 95 100 51 20 . . . . 34 Level 1 27 | . 13 . 25 . . . 4 . 48 79 . . . . 26 Level 2 3 | . . . . . . . . . . . . . . . 38 Level 3 . | . . . . . . . . . . . . . . . . Level 4 . | . . . . . . . . . . . . . . . . Level 5 . | . . . . . . . . . . . . . . . . High Security . | . . . . . . . . . . . . . . . . Max Security . | . . . . . . . . . . . . . . . . Sterilizations 1 | . . . . . . . . . 1 . . . . . . Squads Dispatched 20 | . 2 . 4 . . . 5 . 2 6 . . . . 1 Investigation 8 | . 2 . 3 . . . . . . 3 . . . . . Extermination 3 | . . . . . . . . . . 2 . . . . 1 Reinforcement 6 | . . . 1 . . . 2 . 2 1 . . . . . Assault . | . . . . . . . . . . . . . . . . Garrison 3 | . . . . . . . 3 . . . . . . . . Intercept . | . . . . . . . . . . . . . . . . Construction Impeded . | . . . . . . . . . . . . . . . . Haulers Reinforced . | . . . . . . . . . . . . . . . . Active Scanning Responses . | . . . . . . . . . . . . . . . . Cargo Convoy Interrupts . | . . . . . . . . . . . . . . . . Stealth | -11 -10 -10 -9 -9 -9 -8 -8 -7 -7 -6 -6 -6 -6 -5 -5 --------- Run | Scr Mat Min Mat Min Exi Min Mat Fac DSF Fac Low Low Dat Pro Fac Distress Signals 2 | . . . . . . . 1 . . 1 . . . . . Communications Jammed . | . . . . . . . . . . . . . . . . Distress Signals . | . . . . . . . . . . . . . . . . Times Spotted 161 | . 18 . 25 3 . . 31 . 16 18 10 4 . 9 27 Peak Tracking Total 9 | . 3 . 7 3 . . 9 . 4 3 4 2 . 5 8 Tactical Retreats 16 | . . . 3 . . . 4 . 5 2 . . . . 2 Traps | -11 -10 -10 -9 -9 -9 -8 -8 -7 -7 -6 -6 -6 -6 -5 -5 ------- Run | Scr Mat Min Mat Min Exi Min Mat Fac DSF Fac Low Low Dat Pro Fac Traps Triggered 5 | . 1 . . . . . 1 . 2 1 . . . . . Indirectly . | . . . . . . . . . . . . . . . . Trap Hack Attempts . | . . . . . . . . . . . . . . . . Triggered . | . . . . . . . . . . . . . . . . Disarmed . | . . . . . . . . . . . . . . . . Reprogrammed . | . . . . . . . . . . . . . . . . Reused . | . . . . . . . . . . . . . . . . Traps Extracted . | . . . . . . . . . . . . . . . . Installed . | . . . . . . . . . . . . . . . . Triggered 1 | . . . . . . . . . . . . 1 . . . Machines | -11 -10 -10 -9 -9 -9 -8 -8 -7 -7 -6 -6 -6 -6 -5 -5 ---------- Run | Scr Mat Min Mat Min Exi Min Mat Fac DSF Fac Low Low Dat Pro Fac Machines Disabled 1 | . . . . . . . . . 1 . . . . . . Max in Single Turn 1 | . . . . . . . . . 1 . . . . . . Garrison Access 1 | . . . . . . . . 1 . . . . . . . Machines Sabotaged . | . . . . . . . . . . . . . . . . Garrisons Compromised . | . . . . . . . . . . . . . . . . Overloaded Fab Kills . | . . . . . . . . . . . . . . . . Hacking | -11 -10 -10 -9 -9 -9 -8 -8 -7 -7 -6 -6 -6 -6 -5 -5 --------- Run | Scr Mat Min Mat Min Exi Min Mat Fac DSF Fac Low Low Dat Pro Fac Machines Accessed 33 | . 7 . 5 . 3 . 8 3 . 3 . . 4 . . Terminals 21 | . 5 . 4 . . . 8 2 . 2 . . . . . Fabricators . | . . . . . . . . . . . . . . . . Repair Stations . | . . . . . . . . . . . . . . . . Recycling Units 4 | . 2 . 1 . . . . . . 1 . . . . . Scanalyzers . | . . . . . . . . . . . . . . . . Garrison Access 1 | . . . . . . . . 1 . . . . . . . Total Hacks 97 | . 19 . 10 . 3 . 22 7 . 4 . . 32 . . Successful 60 | . 11 . 3 . 3 . 8 2 . 1 . . 32 . . Failed 37 | . 8 . 7 . . . 14 5 . 3 . . . . . Catastrophic 12 | . 3 . 3 . . . 3 1 . 2 . . . . . Database Lockouts . | . . . . . . . . . . . . . . . . Manual 34 | . 10 . 8 . 1 . 12 1 . 2 . . . . . Terminals 54 | . 17 . 8 . . . 22 4 . 3 . . . . . Fabricators . | . . . . . . . . . . . . . . . . Repair Stations . | . . . . . . . . . . . . . . . . Recycling Units 5 | . 2 . 2 . . . . . . 1 . . . . . Scanalyzers . | . . . . . . . . . . . . . . . . Garrison Access 3 | . . . . . . . . 3 . . . . . . . Terminal Hacks 55 | . 9 . 2 . 3 . 8 1 . . . . 32 . . Record 13 | . . . . . 2 . . . . . . . 11 . . Part Schematic 13 | . . . . . . . . . . . . . 13 . . Robot Schematic 5 | . . . . . . . . . . . . . 5 . . Robot Analysis 2 | . . . . . . . 2 . . . . . . . . Prototype ID Bank 3 | . . . . . . . . . . . . . 3 . . Open DSF 1 | . . . . . . . . 1 . . . . . . . Branch Access Points 3 | . 1 . 1 . . . 1 . . . . . . . . Terminal Index 1 | . 1 . . . . . . . . . . . . . . Repair Station Index 1 | . 1 . . . . . . . . . . . . . . Alert Level 1 | . 1 . . . . . . . . . . . . . . Unreport Threat 5 | . 2 . 1 . . . 2 . . . . . . . . Locate Traps 1 | . 1 . . . . . . . . . . . . . . Zone Layout 5 | . 2 . . . . . 3 . . . . . . . . EX-Prototype ID Bank 1 | . . . . . 1 . . . . . . . . . . Fabricator Hacks . | . . . . . . . . . . . . . . . . Repair Station Hacks . | . . . . . . . . . . . . . . . . Recycling Unit Hacks . | . . . . . . . . . . . . . . . . Scanalyzer . | . . . . . . . . . . . . . . . . Garrison Access Hacks 1 | . . . . . . . . 1 . . . . . . . Seal Access 1 | . . . . . . . . 1 . . . . . . . Unauthorized Hacks 4 | . 2 . 1 . . . . . . 1 . . . . . Terminals . | . . . . . . . . . . . . . . . . Fabricators . | . . . . . . . . . . . . . . . . Repair Stations . | . . . . . . . . . . . . . . . . Recycling Units 4 | . 2 . 1 . . . . . . 1 . . . . . Tunnel 4 | . 2 . 1 . . . . . . 1 . . . . . Scanalyzers . | . . . . . . . . . . . . . . . . Garrison Access . | . . . . . . . . . . . . . . . . Data Cores Recovered . | . . . . . . . . . . . . . . . . Used . | . . . . . . . . . . . . . . . . Hacking Detections 18 | . 4 . 3 . . . 7 2 . 2 . . . . . Full Trace Events 3 | . 1 . 1 . . . . . . 1 . . . . . Feedback Events 1 | . . . . . . . . . . 1 . . . . . Corruption 1 | . . . . . . . . . . 1 . . . . . Feedback Blocked . | . . . . . . . . . . . . . . . . Robot Schematics Acquired 5 | . . . . . . . . . . . . . 5 . . Robots Built . | . . . . . . . . . . . . . . . . Authchips . | . . . . . . . . . . . . . . . . Time . | . . . . . . . . . . . . . . . . Total Robot Build Rating . | . . . . . . . . . . . . . . . . Part Schematics Acquired 13 | . . . . . . . . . . . . . 13 . . Parts Built . | . . . . . . . . . . . . . . . . Authchips . | . . . . . . . . . . . . . . . . Time . | . . . . . . . . . . . . . . . . Total Part Build Rating . | . . . . . . . . . . . . . . . . Parts Repaired . | . . . . . . . . . . . . . . . . Time . | . . . . . . . . . . . . . . . . Parts Recycled . | . . . . . . . . . . . . . . . . Recycled Matter . | . . . . . . . . . . . . . . . . Retrieved Matter . | . . . . . . . . . . . . . . . . Retrieved Components . | . . . . . . . . . . . . . . . . Parts Scanalyzed . | . . . . . . . . . . . . . . . . Part Schematics Acquired . | . . . . . . . . . . . . . . . . Parts Damaged . | . . . . . . . . . . . . . . . . Bothacking | -11 -10 -10 -9 -9 -9 -8 -8 -7 -7 -6 -6 -6 -6 -5 -5 ------------ Run | Scr Mat Min Mat Min Exi Min Mat Fac DSF Fac Low Low Dat Pro Fac Used RIF Installer . | . . . . . . . . . . . . . . . . Robots Hacked . | . . . . . . . . . . . . . . . . Non-combat . | . . . . . . . . . . . . . . . . Combat . | . . . . . . . . . . . . . . . . Robot Hacks Applied . | . . . . . . . . . . . . . . . . Relay Couplers Released . | . . . . . . . . . . . . . . . . Fabnet Peak Effective % . | . . . . . . . . . . . . . . . . Robots Rewired . | . . . . . . . . . . . . . . . . Allies Hacked . | . . . . . . . . . . . . . . . . Hacks Repelled . | . . . . . . . . . . . . . . . . Allies | -11 -10 -10 -9 -9 -9 -8 -8 -7 -7 -6 -6 -6 -6 -5 -5 -------- Run | Scr Mat Min Mat Min Exi Min Mat Fac DSF Fac Low Low Dat Pro Fac Total Allies 6 | . . 3 . 2 . . . . . . . . . 1 . Largest Group 3 | . . 3 3 2 2 . . . . . . . . 1 1 Highest-Rated Group 95 | . . 40 40 44 44 . . . . . . . . 95 95 Highest-Rated Ally 95 | . . 16 16 31 31 . . . . . . . . 95 95 Total Orders 3 | . . . . . . . . . . . 2 1 . . . EXPLORE 3 | . . . . . . . . . . . 2 1 . . . Ally Attacks 63 | . . . 36 . . . . . . . . . . 17 10 Total Damage 1048 | . . . 247 . . . . . . . . . . 519 282 Kills 7 | . . . 3 . . . . . . . . . . 2 2 Allies Corrupted . | . . . . . . . . . . . . . . . . Allies Melted . | . . . . . . . . . . . . . . . . Intel | -11 -10 -10 -9 -9 -9 -8 -8 -7 -7 -6 -6 -6 -6 -5 -5 ------- Run | Scr Mat Min Mat Min Exi Min Mat Fac DSF Fac Low Low Dat Pro Fac Robot Analysis Total 2 | . . . . . . . 2 . . . . . . . . Derelict Logs Recovered 5 | . . . . 1 . . . . . . 1 2 . 1 . Drone Launches 3 | . . . . . . . . . . . 2 1 . . . Drone Recoveries 1 | . . . . . . . . . . . 1 . . . . Exploration | -11 -10 -10 -9 -9 -9 -8 -8 -7 -7 -6 -6 -6 -6 -5 -5 ------------- Run | Scr Mat Min Mat Min Exi Min Mat Fac DSF Fac Low Low Dat Pro Fac Turns Passed 6142 | 3 707 32 584 244 295 97 758 189 297 770 901 426 127 387 325 Spaces Moved 3946 | 3 502 25 354 170 266 98 502 173 158 379 540 239 80 227 230 Core 118 | . . . . . . . . . . . . . . . 118 Treads 1579 | . . . . . . . . . 66 337 540 239 80 227 90 Legs 2031 | 3 284 25 354 170 266 98 502 173 92 42 . . . . 22 Wheels 218 | . 218 . . . . . . . . . . . . . . Hover . | . . . . . . . . . . . . . . . . Flight . | . . . . . . . . . . . . . . . . Fastest Speed 45 | 120 80 120 120 120 100 100 45 105 100 105 160 160 160 160 50 Average Speed 126 | 120 103 120 122 120 109 100 94 105 128 153 160 160 160 160 103 Slowest Speed 240 | 120 120 120 190 120 120 100 100 105 240 160 160 160 160 160 200 Overloaded Moves 51 | . . . . . . . 51 . . . . . . . . Propulsion Burnouts . | . . . . . . . . . . . . . . . . Robots Hopped . | . . . . . . . . . . . . . . . . Cave-ins Triggered 1 | . . . . . . . . . . . . . . . 1 Exploration Rate (%) 42 | 1 77 10 32 45 62 24 45 6 81 12 86 60 71 53 10 Regions Visited 15 Branch Regions 8 Pre-discovered Areas 5 | . 2 . 1 . . . . . . 1 . . 1 . . Known Exits Taken 13 | . 1 1 1 1 1 1 1 1 . 1 1 1 1 1 . Unknown Exits Taken 1 | 1 . . . . . . . . . . . . . . . Scrap Searched 11 | . . . . 2 . . . . . . 8 . . 1 . Spaces Dug . | . . . . . . . . . . . . . . . . Terrain Destroyed 361 | . . . . . . . 20 . 40 4 121 96 . 54 26 Melee . | . . . . . . . . . . . . . . . . Projectile 4 | . . . . . . . . . . 4 . . . . . AOE 357 | . . . . . . . 20 . 40 . 121 96 . 54 26 Terrain Rammed . | . . . . . . . . . . . . . . . . Walls Destroyed . | . . . . . . . . . . . . . . . . Machines Disabled . | . . . . . . . . . . . . . . . . Actions | -11 -10 -10 -9 -9 -9 -8 -8 -7 -7 -6 -6 -6 -6 -5 -5 --------- Run | Scr Mat Min Mat Min Exi Min Mat Fac DSF Fac Low Low Dat Pro Fac Total 4697 | 2 622 27 447 193 269 97 730 180 210 501 559 263 79 235 283 Wait 296 | . 41 3 37 6 . . 147 . 7 42 . 11 . . 2 Move 3931 | 2 501 24 353 169 265 97 501 172 157 378 539 238 79 226 230 Hop . | . . . . . . . . . . . . . . . . Pick Up 77 | . 14 . 11 3 . . 17 3 2 17 4 . . . 6 Fast Attach 17 | . 4 . 2 . . . 3 . 5 2 1 . . . . Attach 43 | . 2 . 6 1 . . 12 3 5 6 . 3 . 1 4 Detach 1 | . . . . . . . . . 1 . . . . . . Swap 35 | . 6 . 2 2 2 . 6 1 4 11 . . . . 1 Drop 51 | . 15 . 6 3 2 . 6 1 3 9 5 1 . . . Fire 195 | . 38 . 30 9 . . 31 . 6 35 10 10 . 8 18 Melee 21 | . . . . . . . 2 . 19 . . . . . . Ram 16 | . . . . . . . . . . . . . . . 16 Kick 12 | . 1 . . . . . 5 . . . . . . . 6 Crush 1 | . . . . . . . . . . 1 . . . . . Escape Stasis . | . . . . . . . . . . . . . . . . Rewire 1 | . . . . . . . . . 1 . . . . . . Trap . | . . . . . . . . . . . . . . . . Miscellaneous . | . . . . . . . . . . . . . . . . Route ------- -11/Scrapyard -10/Materials (discovered 3 exits: *Mat x2 / *Min) -10/Mines -9/Materials (discovered 2 exits: *Min / Sto) -9/Mines -9/Exiles (discovered 2 exits: *Min x2) -8/Mines -8/Materials -7/Factory -7/DSF -6/Factory -6/Lower Caves -6/Lower Caves (discovered 2 exits: *Fac / *Dat) -6/Data Miner -5/Proximity Caves -5/Factory History --------- Turn | Location | Event 1 | -11/Scrapyard | Discovered new exit (range 1) 4 | -11/Scrapyard | Entered Materials 285 | -10/Materials | Discovered new exit (range 16) 287 | -10/Materials | Identified exit to Mines 304 | -10/Materials | Identified exit to Materials 320 | -10/Materials | Build established: Mutant 605 | -10/Materials | Discovered exit to Materials (range 12) 711 | -10/Materials | Entered Mines 714 | -10/Mines | Assisted by bots powering up and referring to "LRC-V3" 732 | -10/Mines | Discovered exit to Materials (range 8) 743 | -10/Mines | Met a Derelict bent on vengeance 743 | -10/Mines | Entered Materials 743 | -9/Materials | Accompanied by 3 allies 743 | -9/Materials | Evolved 2 slots: Propulsion x1, Utility x1 1030 | -9/Materials | Destroyed 7 combat bots 1064 | -9/Materials | Lost 4 parts (1p2n1w) 1203 | -9/Materials | Identified exit to Mines 1203 | -9/Materials | Identified exit to Storage 1327 | -9/Materials | Entered Mines 1328 | -9/Mines | Assembled infested the area 1498 | -9/Mines | Identified exit to Exiles 1571 | -9/Mines | Entered Exiles 1571 | -9/Exiles | Accompanied by 2 allies 1587 | -9/Exiles | Discovered new exit (range 15) 1601 | -9/Exiles | Led the pair of lost Derelicts to a safe place 1604 | -9/Exiles | Met 8R-AWN 1618 | -9/Exiles | Met EX-HEX 1661 | -9/Exiles | Build established: Scavenger-Mutant 1664 | -9/Exiles | Met EX-BIN 1681 | -9/Exiles | Aligned with FarCom system 1682 | -9/Exiles | Given EX-Vault access code 1721 | -9/Exiles | Opened EX-Vault 1729 | -9/Exiles | Found Potential Leg 1731 | -9/Exiles | Found Potential Leg 1785 | -9/Exiles | Warned to stay clear of 0b10 Research branches 1812 | -9/Exiles | Met EX-DEC 1854 | -9/Exiles | Discovered new exit (range 14) 1865 | -9/Exiles | Identified exit to Mines 1866 | -9/Exiles | Left Exiles lab with Potential Leg 1866 | -9/Exiles | Entered Mines 1950 | -8/Mines | Discovered new exit (range 12) 1959 | -8/Mines | Identified exit to Materials 1963 | -8/Mines | Entered Materials 1963 | -8/Materials | Evolved 2 slots: Utility x2 2076 | -8/Materials | Garrison activated, responded to threat 2171 | -8/Materials | Build established: Skirmisher 2460 | -8/Materials | Lost 7 parts (1p1n2u3w) 2593 | -8/Materials | Lost 3 parts (2u1w) 2709 | -8/Materials | Discovered new exit (range 13) 2720 | -8/Materials | Identified exit to Factory 2721 | -8/Materials | Entered Factory 2721 | -7/Factory | Evolved 2 slots: Propulsion x1, Utility x1 2879 | -7/Factory | Build established: Scavenger-Mutant 2909 | -7/Factory | Identified exit to DSF 2910 | -7/Factory | Entered DSF 2934 | -7/DSF | Additional patrols routed to DSF 3099 | -7/DSF | Lost 3 parts (1p1n1w) 3159 | -7/DSF | Sterilization system engaged 3179 | -7/DSF | Ambient heat levels rising (+10) 3180 | -7/DSF | Discovered new exit (range 17) 3194 | -7/DSF | Ambient heat levels rising (+10) 3205 | -7/DSF | Identified exit to Factory 3207 | -7/DSF | Entered Factory 3207 | -6/Factory | Evolved 2 slots: Utility x2 3392 | -6/Factory | Build established: Mutant 3968 | -6/Factory | Discovered new exit (range 7) 3974 | -6/Factory | Identified exit to Lower Caves 3977 | -6/Factory | Entered Lower Caves 4012 | -6/Lower Caves | Build established: Skirmisher 4213 | -6/Lower Caves | Learned Factory terminal intel 4825 | -6/Lower Caves | Discovered new exit (range 11) 4839 | -6/Lower Caves | Identified exit to Lower Caves 4878 | -6/Lower Caves | Entered another Lower Caves area 4879 | -6/Lower Caves | Discovered new exit (range 12) 4895 | -6/Lower Caves | Identified exit to Factory 4941 | -6/Lower Caves | Encountered a Warlord checkpoint 4963 | -6/Lower Caves | Identified exit to Data Miner 5090 | -6/Lower Caves | Learned 4 Factory zone layouts 5304 | -6/Lower Caves | Entered Data Miner 5304 | -6/Data Miner | Discovered new exit (range 6) 5332 | -6/Data Miner | Met Data Miner 5367 | -6/Data Miner | Learned location of Section 7 (-2) 5367 | -6/Data Miner | Acquired the access code to Warlord's prototype stash 5396 | -6/Data Miner | Received God Mode back door access code from Data Miner 5429 | -6/Data Miner | Identified exit to Proximity Caves 5431 | -6/Data Miner | Entered Proximity Caves 5494 | -5/Proximity Caves | Escorted by Enhanced Grunt 5664 | -5/Proximity Caves | Lost 3 parts (3n) 5698 | -5/Proximity Caves | Learned Factory garrison access intel 5799 | -5/Proximity Caves | Discovered exit to Factory (range 13) 5818 | -5/Proximity Caves | Entered Factory 5818 | -5/Factory | Accompanied by 1 ally 5818 | -5/Factory | Evolved 2 slots: Utility x2 5820 | -5/Factory | Loaded intel: 27 terminal locations 5821 | -5/Factory | Loaded intel: 4 garrison access locations 5967 | -5/Factory | Destroyed 7 combat bots 6002 | -5/Factory | Crushed by falling debris 6086 | -5/Factory | Core integrity fell below 50% 6101 | -5/Factory | Lost 15 parts (1p3n7u4w) 6123 | -5/Factory | System corruption reached 10% 6143 | -5/Factory | Destroyed by P-70 Sage via exploding Fusion Modulator Last Messages --------------- 06080_ Slammed into S-27 Virus. 06083_ K-01 Serf collects debris. 06084_ FTZ9SI7HD>F0X5FR:QEQ1XYJS#PA>NG5R 06084_ Slammed into S-27 Virus. 06084_ Destabilizing: Core damaged (-40). 06085_ Slammed into S-27 Virus. 06092_ Destabilizing: Core damaged (-30). 06093_ Slammed into S-27 Virus. 06093_ Destabilizing: Core damaged (-30). 06094_ Slammed into S-27 Virus. 06096_ S-27 Virus destroyed. 06097_ Acquired 30 matter. 06098_ Slammed into K-01 Serf. 06099_ K-01 Serf collects debris. 06100_ ALERT: Security rotation in progress. 06119_ K-01 Serf destroyed. 06120_ K-01 Serf collects debris. 06122_ Door malfunctions. 06143_ Fusion Modulator explodes. 06143_ L-41 Fighter destroyed. Map ----- +----------------------------------------------------+ | | | | | | | | | | | | | | | | | | | | | | | | | | | | | | | | | | | | | ??????????????????????###################????????? | | ?????????????????????## #????????? | | ?????????????????????#; #????????? | | ?????????????????????#; #????????? | | ?????????""?????????##; """ """ #????????? | | ?????????""?????????# ; p""" """ #????????? | | ??????????G?????????# ; """ """ #????????? | | ?????????""??????????#; @ p! #????????? | | ?????????""??########;;;; ; =;#########????????? | | ?????????????# g% #####??????????? | | ?????????????# ] ;gg # ??????????? | | ?????????????# # # "??????????? | | ?????????????# # + "??????????? | | ?????????????# + # "??????????? | | ?????????????# # # ??????????? | | ????????????#############+### ####+######????? | | ????????????# # ???? | | ????????????# # ???? | | ????????????# # ???? | | ????????????# # ""????# | | ????????????# / ""????# | | ????????????# ###########+####### ???????? | | ????????????# #????# #??????? ## | | ????????????# #????# #? ?! ? | | ??????? / #????# # ?? | | ?????? #!%= #????# # " ?? | | ?????? ??# * #????# ! # "??? | | ??????? ??? / #????# # ???? | | ??????????### #????# # #?????### | | ????????????# #????# [ + #???????? | | ????????????# #????# # #???????? | | ????????????# ?????# # #???????? | +----------------------------------------------------+ Best States ------------- Heat Dissipation 40 Energy Generation 16 Energy Capacity 290 Matter Stores 300 Matter Capacity 300 Sight Range 18 Robot Scan Range 15 Terrain Scan Density 210 Armor Coverage 750 Power Shielding 66 Propulsion Shielding 33 Evasion (%) 58 Targeting Accuracy 5 Recoil Reduction 4 Offensive Hacking 10 Item Schematics ----------------- Combat Drone Bay | -6/Data Miner | Free Lgt. Regenerative Plating | -6/Data Miner | Free Imp. Energy Well | -6/Data Miner | Free Cld. Nuclear Pulse Thruster | -6/Data Miner | Free Plasma Sword | -6/Data Miner | Free Adv. VSS Leg | -6/Data Miner | Free Nanoactuators | -6/Data Miner | Free Dual-blade Saw | -6/Data Miner | Free Hvy. Phase Cannon | -6/Data Miner | Free Adv. Armor Integrity Analyzer | -6/Data Miner | Free Hvy. Gauss Cannon | -6/Data Miner | Free Stasis Canceller | -6/Data Miner | Free Adv. Weapon Cycler | -6/Data Miner | Free Robot Schematics ------------------ L-41 Fighter | -6/Data Miner | Free M-22 Extractor | -6/Data Miner | Free H-66 Slayer | -6/Data Miner | Free H-77 Assassin | -6/Data Miner | Free R-10 Processor | -6/Data Miner | Free Fabricated ------------ Nothing Alien Tech Used ----------------- None Achievements -------------- Ambidextrous Challenges ------------ None Game ------ Seed 1337 Manual? 1 Play Time 01:07:44 Cumulative 82.8 hours Start 2021.11.09 @ 21:53:17 End 2021.11.09 @ 23:04:38 Sessions 1 Manual Loads 0 Difficulty Rogue Special Mode None Game No. 103 Rogue 103 Adventurer 0 Explorer 0 Win Type - Total 0 Types 0/0/0/0/0/0/0/0/0 Lore% 52 Gallery% 47 Achievement% 41 Wizard Run 0 Options --------- ASCII 1 Keyboard 0 Movement Vi Keybinds 0 Fullscreen 2 Font 20/SmallcapsGlow Map View 66x50 Tactical HUD 1 Map Filters NONE Filters NONE Steam 1 RUN: de597c07-be54-49e9-a922-c012a84b5d82